[Event "11th LCC Rapid 2019"]
[Site "London"]
[Date "2019.12.07"]
[Round "4.9"]
[White "Stewart, Ashley"]
[Black "Mihalik, Agoston"]
[Result "1/2-1/2"]
[WhiteElo "2172"]
[BlackElo "2196"]
[PlyCount "131"]
[EventDate "2019.12.08"]
[EventType "swiss"]
[EventCountry "ENG"]
[TimeControl "15+10"]

1. c4 {[%emt 0:13:40]} e5 {[%emt 0:00:04]} 2. g3 Nf6 {[%emt 0:00:05]} 3. Bg2 h6 {[%emt 0:00:01]} 4. Nc3 {[%emt 0:00:10]} Bb4 5. d3 {[%emt 0:00:07]} Bxc3+ {[%emt 0:00:20]} 6. bxc3 {[%emt 0:00:01]} c5 {[%emt 0:00:18]} 7. e4 {[%emt 0:00:37]} O-O {[%emt 0:00:11]} 8. f4 {[%emt 0:01:01]} exf4 {[%emt 0:00:56]} 9. gxf4 {[%emt 0:01:14]} d6 {[%emt 0:00:12]} 10. Nf3 {[%emt 0:00:05]} Nc6 {[%emt 0:00:07]} 11. O-O {[%emt 0:00:27]} a6 {[%emt 0:00:23]} 12. a4 {[%emt 0:00:35]} Bd7 {[%emt 0:00:26]} 13. e5 {[%emt 0:03:23]} Ne8 {[%emt 0:01:13]} 14. d4 {[%emt 0:00:28]} Na5 {[%emt 0:00:18]} 15. Qd3 {[%emt 0:01:03]} Rc8 {[%emt 0:02:05]} 16. d5 {[%emt 0:00:14]} Nb3 {[%emt 0:00:48]} 17. Ra3 {[%emt 0:00:43]} Nxc1 {[%emt 0:00:05]} 18. Rxc1 {[%emt 0:00:01]} Bg4 {[%emt 0:03:05]} 19. Re1 {[%emt 0:01:21]} Nc7 {[%emt 0:00:18]} 20. Rb3 {[%emt 0:01:29]} Rb8 {[%emt 0:01:11]} 21. a5 {[%emt 0:01:06]} Ne8 {[%emt 0:00:16]} 22. Rb6 {[%emt 0:00:34]} Qd7 {[%emt 0:00:59]} 23. exd6 {[%emt 0:00:27]} Bxf3 {[%emt 0:00:13]} 24. Qxf3 {[%emt 0:00:53]} Nxd6 {[%emt 0:00:06]} 25. Qd3 {[%emt 0:01:32]} Rfe8 {[%emt 0:00:09]} 26. Re5 {[%emt 0:00:09]} Re7 {[%emt 0:00:44]} 27. Bh3 {[%emt 0:00:30]} Qc7 {[%emt 0:00:03]} 28. Qe2 {[%emt 0:00:19]} Rbe8 {[%emt 0:00:04]} 29. Rb1 {[%emt 0:00:22]} Rxe5 {[%emt 0:02:29]} 30. fxe5 {[%emt 0:00:01]} Qxa5 {[%emt 0:00:07]} 31. Qh5 {[%emt 0:00:38]} Nxc4 {[%emt 0:01:14]} 32. e6 {[%emt 0:00:15]} Nd6 {[%emt 0:00:55]} 33. exf7+ {[%emt 0:00:19]} Nxf7 {[%emt 0:00:03]} 34. Be6 {[%emt 0:00:05]} Rf8 {[%emt 0:00:40]} 35. Rf1 {[%emt 0:00:24]} Qc7 {[%emt 0:00:14]} 36. d6 {[%emt 0:00:20]} Qxd6 37. Bxf7+ {[%emt 0:00:03]} Kh8 {[%emt 0:00:01]} 38. Qd5 {[%emt 0:00:10]} Qe7 {[%emt 0:00:19]} 39. Qe6 {[%emt 0:00:04]} Qg5+ {[%emt 0:00:02]} 40. Kh1 {[%emt 0:00:04]} b5 {[%emt 0:00:34]} 41. Qe2 {[%emt 0:00:08]} c4 {[%emt 0:00:20]} 42. Qe6 {[%emt 0:00:27]} a5 {[%emt 0:00:09]} 43. Rf5 {[%emt 0:00:08]} Qc1+ {[%emt 0:00:03]} 44. Kg2 {[%emt 0:00:01]} Qc2+ 45. Rf2 {[%emt 0:00:05]} Qxc3 {[%emt 0:00:06]} 46. Qe7 {[%emt 0:00:06]} Qb4 {[%emt 0:00:19]} 47. Qe4 {[%emt 0:00:08]} Qd6 {[%emt 0:00:12]} 48. Qd5 {[%emt 0:00:32]} Qb6 {[%emt 0:00:10]} 49. Qe5 {[%emt 0:00:08]} b4 {[%emt 0:00:18]} 50. Rf3 {[%emt 0:00:07]} c3 {[%emt 0:00:08]} 51. Bb3 {[%emt 0:00:10]} Qg6+ {[%emt 0:00:21]} 52. Kf2 {[%emt 0:00:07]} Rxf3+ {[%emt 0:00:08]} 53. Kxf3 Qf6+ {[%emt 0:00:15]} 54. Qxf6 {[%emt 0:00:03]} gxf6 55. Kf4 {[%emt 0:00:20]} Kg7 {[%emt 0:00:14]} 56. Kf5 {[%emt 0:00:05]} h5 {[%emt 0:00:05]} 57. h4 {[%emt 0:00:05]} Kh7 {[%emt 0:00:20]} 58. Kxf6 {[%emt 0:00:06]} Kh8 {[%emt 0:00:10]} 59. Kg5 {[%emt 0:00:10]} Kg7 {[%emt 0:00:06]} 60. Kxh5 {[%emt 0:00:01]} Kh8 61. Kg5 {[%emt 0:00:02]} Kg7 {[%emt 0:00:02]} 62. h5 {[%emt 0:00:03]} Kh8 63. h6 {[%emt 0:00:05]} a4 {[%emt 0:00:06]} 64. Bxa4 {[%emt 0:00:02]} c2 {[%emt 0:00:06]} 65. Bxc2 b3 66. Bxb3 {[%emt 0:00:02]} 1/2-1/2

[Event "11th LCC Rapid 2019"]
[Site "London"]
[Date "2019.12.07"]
[Round "4.10"]
[White "Richardson, John R"]
[Black "Rahman, Asad"]
[Result "1-0"]
[WhiteElo "2241"]
[BlackElo "2200"]
[PlyCount "89"]
[EventDate "2019.12.08"]
[EventType "swiss"]
[EventCountry "ENG"]
[TimeControl "15+10"]
[WhiteClock "0:06:43"]
[BlackClock "0:07:43"]

1. d4 {[%emt 0:00:00]} d5 {[%emt 0:00:00]} 2. c4 {[%emt 0:00:00]} c6 {[%emt 0:00:00]} 3. Nc3 {[%emt 0:00:00]} Nf6 {[%emt 0:00:00]} 4. Nf3 {[%emt 0:00:00]} g6 {[%emt 0:00:00]} 5. cxd5 {[%emt 0:00:00]} cxd5 {[%emt 0:00:00]} 6. Bf4 {[%emt 0:00:00]} a6 {[%emt 0:00:00]} 7. h3 {[%emt 0:00:00]} Bg7 {[%emt 0:00:00]} 8. e3 {[%emt 0:00:00]} Nc6 {[%emt 0:00:00]} 9. Be2 {[%emt 0:00:00]} O-O {[%emt 0:00:00]} 10. O-O {[%emt 0:00:00]} Bf5 {[%emt 0:00:00]} 11. Rc1 {[%emt 0:00:00]} Rc8 {[%emt 0:00:00]} 12. Na4 {[%emt 0:00:00]} Qa5 {[%emt 0:00:00]} 13. a3 {[%emt 0:00:00]} Ne4 {[%emt 0:00:00]} 14. b4 {[%emt 0:00:00]} Qd8 {[%emt 0:00:00]} 15. Nd2 {[%emt 0:00:00]} e5 {[%emt 0:00:00]} 16. dxe5 {[%emt 0:00:00]} Nxe5 {[%emt 0:00:00]} 17. Nxe4 {[%emt 0:00:00]} dxe4 {[%emt 0:00:00]} 18. Nc5 {[%emt 0:00:00]} Qe7 {[%emt 0:00:00]} 19. Qd5 {[%emt 0:00:00]} b6 {[%emt 0:00:00]} 20. Nxa6 {[%emt 0:00:00]} Rxc1 {[%emt 0:00:00]} 21. Rxc1 {[%emt 0:00:00]} Rd8 {[%emt 0:00:00]} 22. Rc7 {[%emt 0:00:00]} Rxd5 {[%emt 0:00:00]} 23. Rxe7 {[%emt 0:00:00]} h6 {[%emt 0:00:00]} 24. Nc7 {[%emt 0:00:00]} Rd2 {[%emt 0:00:00]} 25. Bxe5 {[%emt 0:00:00]} Bxe5 {[%emt 0:00:00]} 26. Rxe5 {[%emt 0:00:00]} Rxe2 {[%emt 0:00:00]} 27. g4 {[%emt 0:00:00]} Bd7 {[%emt 0:00:00]} 28. Nd5 {[%emt 0:00:00]} Be6 {[%emt 0:00:00]} 29. Nxb6 {[%emt 0:00:00]} Ra2 {[%emt 0:00:00]} 30. a4 {[%emt 0:00:00]} Kf8 {[%emt 0:00:00]} 31. Rxe4 {[%emt 0:00:00]} Ke7 {[%emt 0:00:00]} 32. Rd4 {[%emt 0:00:00]} h5 {[%emt 0:00:00]} 33. Kg2 {[%emt 0:00:00]} hxg4 {[%emt 0:00:00]} 34. hxg4 {[%emt 0:00:00]} Rc2 {[%emt 0:00:00]} 35. Nd5+ {[%emt 0:00:00]} Kd6 {[%emt 0:00:08]} 36. Nf4+ {[%emt 0:00:00]} Ke5 {[%emt 0:00:02]} 37. Nxe6 {[%emt 0:00:00]} fxe6 {[%emt 0:00:00]} 38. b5 {[%emt 0:00:00]} Ra2 {[%emt 0:00:02]} 39. Rb4 {[%emt 0:00:00]} Kd6 {[%emt 0:00:28]} 40. b6 {[%emt 0:00:00]} Kc5 {[%emt 0:00:01]} 41. b7 {[%emt 0:00:00]} Kxb4 {[%emt 0:00:01]} 42. b8=Q+ {[%emt 0:00:00]} Kxa4 {[%emt 0:00:02]} 43. Qe8+ {[%emt 0:00:00]} Kb4 {[%emt 0:00:01]} 44. Qxe6 {[%emt 0:00:00]} Ra5 {[%emt 0:00:07]} 45. Qxg6 {[%emt 0:00:02]} 1-0

[Event "11th LCC Rapid 2019"]
[Site "London"]
[Date "2019.12.07"]
[Round "4.11"]
[White "Makkar, Rajat"]
[Black "Abrahams, Daniel"]
[Result "0-1"]
[WhiteElo "2137"]
[BlackElo "2176"]
[PlyCount "108"]
[EventDate "2019.12.08"]
[EventType "swiss"]
[EventCountry "ENG"]
[TimeControl "15+10"]
[WhiteClock "0:12:09"]
[BlackClock "0:10:11"]

1. d4 {[%emt 0:00:00]} Nf6 {[%emt 0:00:00]} 2. c4 {[%emt 0:00:00]} e6 {[%emt 0:00:00]} 3. g3 {[%emt 0:00:00]} Bb4+ {[%emt 0:00:00]} 4. Bd2 {[%emt 0:00:00]} a5 {[%emt 0:00:00]} 5. Bg2 {[%emt 0:00:00]} d6 {[%emt 0:00:00]} 6. Nf3 {[%emt 0:00:00]} Nbd7 {[%emt 0:00:00]} 7. O-O {[%emt 0:00:00]} e5 {[%emt 0:00:00]} 8. Nc3 {[%emt 0:00:00]} exd4 {[%emt 0:00:00]} 9. Nxd4 {[%emt 0:00:00]} O-O {[%emt 0:00:00]} 10. Qc2 {[%emt 0:00:00]} Re8 {[%emt 0:00:00]} 11. Bg5 {[%emt 0:00:00]} h6 {[%emt 0:00:00]} 12. Bf4 {[%emt 0:00:00]} Ne5 {[%emt 0:00:00]} 13. Nd5 {[%emt 0:00:00]} Bc5 {[%emt 0:00:00]} 14. Nb3 {[%emt 0:00:00]} c6 {[%emt 0:00:00]} 15. Nxc5 {[%emt 0:00:00]} cxd5 {[%emt 0:00:00]} 16. Bxe5 {[%emt 0:00:00]} Rxe5 {[%emt 0:00:00]} 17. Nd3 {[%emt 0:00:00]} Bf5 {[%emt 0:00:00]} 18. Qb3 {[%emt 0:00:00]} Rxe2 {[%emt 0:00:00]} 19. Nf4 {[%emt 0:00:00]} dxc4 {[%emt 0:00:00]} 20. Qxb7 {[%emt 0:00:00]} Rb8 {[%emt 0:00:00]} 21. Qa7 {[%emt 0:00:00]} Rexb2 {[%emt 0:00:00]} 22. Bd5 {[%emt 0:00:00]} Nxd5 {[%emt 0:00:00]} 23. Nxd5 {[%emt 0:00:00]} Qg5 {[%emt 0:00:00]} 24. Ne3 {[%emt 0:00:00]} Be4 {[%emt 0:00:00]} 25. Nxc4 {[%emt 0:00:00]} Qh5 {[%emt 0:00:00]} 26. Nxd6 {[%emt 0:00:00]} Ba8 {[%emt 0:00:00]} 27. Rfd1 {[%emt 0:00:00]} Qf3 {[%emt 0:00:00]} 28. Qxf7+ {[%emt 0:00:00]} Qxf7 {[%emt 0:00:00]} 29. Nxf7 {[%emt 0:00:00]} Kxf7 {[%emt 0:00:00]} 30. Rd7+ {[%emt 0:00:00]} Ke6 {[%emt 0:00:00]} 31. Rdd1 {[%emt 0:00:00]} Bf3 {[%emt 0:00:00]} 32. Re1+ {[%emt 0:00:00]} Kf5 {[%emt 0:00:00]} 33. h3 {[%emt 0:00:00]} g5 {[%emt 0:00:00]} 34. Rac1 {[%emt 0:00:00]} R8b5 {[%emt 0:00:00]} 35. g4+ {[%emt 0:00:00]} Kf6 {[%emt 0:00:00]} 36. Rc3 {[%emt 0:00:00]} Bd5 {[%emt 0:00:00]} 37. a4 {[%emt 0:00:00]} Rb1 {[%emt 0:00:00]} 38. axb5 {[%emt 0:00:00]} Rxe1+ {[%emt 0:00:00]} 39. Kh2 {[%emt 0:00:00]} Rh1+ {[%emt 0:00:00]} 40. Kg3 {[%emt 0:00:00]} Rg1+ {[%emt 0:00:00]} 41. Kh2 {[%emt 0:00:00]} Rg2+ {[%emt 0:00:00]} 42. Kh1 {[%emt 0:00:00]} Rg3+ {[%emt 0:00:00]} 43. f3 {[%emt 0:00:00]} Rxf3 {[%emt 0:00:00]} 44. Rc5 {[%emt 0:00:00]} Ke5 {[%emt 0:00:00]} 45. Kg1 {[%emt 0:00:00]} a4 {[%emt 0:00:00]} 46. b6 {[%emt 0:00:00]} a3 {[%emt 0:00:00]} 47. b7 {[%emt 0:00:00]} Rb3 {[%emt 0:00:00]} 48. Ra5 {[%emt 0:00:00]} Rb1+ {[%emt 0:00:00]} 49. Kf2 {[%emt 0:00:00]} a2 {[%emt 0:00:00]} 50. Ke3 {[%emt 0:00:00]} Rxb7 {[%emt 0:00:00]} 51. h4 {[%emt 0:00:00]} Rb1 {[%emt 0:00:00]} 52. hxg5 {[%emt 0:00:00]} hxg5 {[%emt 0:00:00]} 53. Ra4 {[%emt 0:00:00]} a1=Q {[%emt 0:00:00]} 54. Re4+ {[%emt 0:00:00]} Bxe4 {[%emt 0:00:00]} 0-1

[Event "11th LCC Rapid 2019"]
[Site "London"]
[Date "2019.12.07"]
[Round "4.12"]
[White "Royal, Shreyas"]
[Black "Salem, Ihab"]
[Result "1-0"]
[WhiteElo "1941"]
[BlackElo "2071"]
[PlyCount "61"]
[EventDate "2019.12.08"]
[EventType "swiss"]
[EventCountry "ENG"]
[TimeControl "15+10"]
[WhiteClock "0:01:47"]
[BlackClock "0:03:48"]

1. d4 {[%emt 0:00:00]} Nf6 {[%emt 0:00:00]} 2. c4 {[%emt 0:00:00]} g6 {[%emt 0:00:00]} 3. Nc3 {[%emt 0:00:00]} d5 {[%emt 0:00:00]} 4. cxd5 {[%emt 0:00:00]} Nxd5 {[%emt 0:00:00]} 5. e4 {[%emt 0:00:00]} Nxc3 {[%emt 0:00:00]} 6. bxc3 {[%emt 0:00:00]} Bg7 {[%emt 0:00:00]} 7. Bc4 {[%emt 0:00:00]} c5 {[%emt 0:00:00]} 8. Be3 {[%emt 0:00:00]} O-O {[%emt 0:00:00]} 9. Ne2 {[%emt 0:00:00]} Nc6 {[%emt 0:00:00]} 10. O-O {[%emt 0:00:00]} b6 {[%emt 0:00:00]} 11. Qd2 {[%emt 0:00:00]} Bb7 {[%emt 0:00:00]} 12. f3 {[%emt 0:00:00]} Na5 {[%emt 0:00:00]} 13. Bd3 {[%emt 0:00:00]} Rc8 {[%emt 0:00:00]} 14. Rac1 {[%emt 0:00:00]} e5 {[%emt 0:00:00]} 15. d5 {[%emt 0:00:00]} c4 {[%emt 0:00:00]} 16. Bc2 {[%emt 0:00:00]} f5 {[%emt 0:00:00]} 17. f4 {[%emt 0:00:00]} fxe4 {[%emt 0:00:00]} 18. Bxe4 {[%emt 0:00:00]} Qh4 {[%emt 0:00:00]} 19. Bf3 {[%emt 0:00:00]} Rce8 {[%emt 0:00:00]} 20. fxe5 {[%emt 0:00:00]} Bxe5 {[%emt 0:00:00]} 21. g3 {[%emt 0:00:00]} Qd8 {[%emt 0:00:00]} 22. Nf4 {[%emt 0:00:00]} Bd6 {[%emt 0:00:00]} 23. Ne6 {[%emt 0:00:00]} Rxe6 {[%emt 0:00:00]} 24. dxe6 {[%emt 0:00:00]} Rxf3 {[%emt 0:00:00]} 25. Rfd1 {[%emt 0:00:00]} Qf8 {[%emt 0:00:27]} 26. Qxd6 {[%emt 0:00:00]} Rf1+ {[%emt 0:00:04]} 27. Rxf1 {[%emt 0:00:00]} Qxd6 {[%emt 0:01:28]} 28. Bh6 {[%emt 0:00:00]} Bd5 {[%emt 0:00:16]} 29. Rcd1 {[%emt 0:01:04]} Qc5+ {[%emt 0:00:03]} 30. Rf2 {[%emt 0:00:01]} Nb3 {[%emt 0:01:10]} 31. Rxd5 {[%emt 0:00:32]} 1-0

[Event "11th LCC Rapid 2019"]
[Site "London"]
[Date "2019.12.07"]
[Round "4.13"]
[White "Brozel, Sacha"]
[Black "Leslie, Alex"]
[Result "1-0"]
[WhiteElo "2188"]
[BlackElo "1875"]
[PlyCount "49"]
[EventDate "2019.12.08"]
[EventType "swiss"]
[EventCountry "ENG"]
[TimeControl "15+10"]

1. g3 {[%emt 0:01:12]} d5 {[%emt 0:00:03]} 2. Nf3 c6 {[%emt 0:00:04]} 3. Bg2 Bf5 {[%emt 0:00:03]} 4. c4 {[%emt 0:00:02]} e6 {[%emt 0:00:04]} 5. O-O {[%emt 0:00:11]} Nf6 {[%emt 0:00:04]} 6. cxd5 {[%emt 0:00:03]} exd5 {[%emt 0:00:06]} 7. d3 {[%emt 0:00:03]} Bd6 {[%emt 0:00:14]} 8. Nc3 {[%emt 0:00:16]} O-O {[%emt 0:00:23]} 9. Qc2 {[%emt 0:00:11]} h6 {[%emt 0:00:51]} 10. e4 {[%emt 0:00:04]} dxe4 {[%emt 0:00:02]} 11. dxe4 {[%emt 0:00:01]} Bh7 {[%emt 0:00:02]} 12. Qb3 {[%emt 0:03:11]} Nxe4 {[%emt 0:01:32]} 13. Qxb7 {[%emt 0:02:07]} Nd7 {[%emt 0:01:40]} 14. Rd1 {[%emt 0:04:10]} Ndf6 {[%emt 0:01:51]} 15. Nxe4 {[%emt 0:00:30]} Nxe4 {[%emt 0:00:09]} 16. Nd4 {[%emt 0:01:08]} Qf6 {[%emt 0:01:19]} 17. Be3 {[%emt 0:00:17]} Rab8 {[%emt 0:01:31]} 18. Qxc6 {[%emt 0:00:15]} Rfc8 {[%emt 0:00:53]} 19. Qa6 {[%emt 0:00:30]} Bc5 {[%emt 0:01:38]} 20. Qxf6 {[%emt 0:00:07]} Nxf6 {[%emt 0:00:02]} 21. Nc6 {[%emt 0:01:06]} Be4 {[%emt 0:01:20]} 22. Nxb8 {[%emt 0:00:37]} Bxe3 {[%emt 0:00:32]} 23. fxe3 {[%emt 0:00:03]} Rxb8 24. b3 {[%emt 0:00:08]} Re8 {[%emt 0:00:02]} 25. Bxe4 {[%emt 0:00:28]} 1-0

[Event "11th LCC Rapid 2019"]
[Site "London"]
[Date "2019.12.07"]
[Round "4.14"]
[White "Harakis, Alexis M"]
[Black "Thatte, Nishchal"]
[Result "1-0"]
[WhiteElo "2267"]
[BlackElo "1723"]
[PlyCount "93"]
[EventDate "2019.12.08"]
[EventType "swiss"]
[EventCountry "ENG"]
[TimeControl "15+10"]

1. d4 {[%emt 0:00:46]} Nf6 {[%emt 0:00:01]} 2. c4 {[%emt 0:00:02]} e6 {[%emt 0:00:01]} 3. Nc3 Bb4 {[%emt 0:00:01]} 4. Nf3 {[%emt 0:00:02]} b6 5. Qb3 {[%emt 0:00:02]} c5 {[%emt 0:00:18]} 6. Bg5 {[%emt 0:00:04]} Nc6 {[%emt 0:00:15]} 7. d5 {[%emt 0:00:49]} exd5 {[%emt 0:00:19]} 8. cxd5 {[%emt 0:00:02]} Na5 {[%emt 0:00:07]} 9. Qd1 {[%emt 0:00:14]} d6 {[%emt 0:00:11]} 10. e3 {[%emt 0:00:01]} O-O {[%emt 0:00:05]} 11. a3 {[%emt 0:00:30]} Bxc3+ {[%emt 0:00:03]} 12. bxc3 {[%emt 0:00:01]} h6 {[%emt 0:00:22]} 13. Bh4 {[%emt 0:00:02]} Bb7 {[%emt 0:00:37]} 14. c4 {[%emt 0:00:27]} b5 {[%emt 0:00:33]} 15. cxb5 {[%emt 0:00:12]} Bxd5 {[%emt 0:00:09]} 16. Rb1 {[%emt 0:00:45]} Be4 {[%emt 0:00:36]} 17. Bd3 {[%emt 0:00:34]} Bxd3 {[%emt 0:01:48]} 18. Qxd3 {[%emt 0:00:09]} Rc8 {[%emt 0:01:07]} 19. O-O {[%emt 0:00:04]} Qe7 {[%emt 0:00:54]} 20. a4 {[%emt 0:01:54]} Rfd8 {[%emt 0:00:49]} 21. Rfc1 {[%emt 0:00:47]} d5 {[%emt 0:00:33]} 22. Qc3 {[%emt 0:00:48]} Nc4 {[%emt 0:00:14]} 23. Bxf6 {[%emt 0:00:31]} Qxf6 {[%emt 0:00:03]} 24. Qxf6 {[%emt 0:00:06]} gxf6 {[%emt 0:00:01]} 25. e4 {[%emt 0:00:09]} Ne5 {[%emt 0:00:13]} 26. exd5 {[%emt 0:00:17]} Rxd5 {[%emt 0:00:49]} 27. Nxe5 {[%emt 0:00:54]} fxe5 {[%emt 0:00:12]} 28. Rc4 {[%emt 0:00:04]} Rd4 {[%emt 0:00:12]} 29. Rbc1 {[%emt 0:00:02]} Kf8 {[%emt 0:00:04]} 30. Kf1 {[%emt 0:00:01]} Rxc4 {[%emt 0:00:19]} 31. Rxc4 {[%emt 0:00:01]} Ke7 {[%emt 0:00:03]} 32. Ke2 {[%emt 0:00:21]} Ke6 {[%emt 0:00:08]} 33. Rh4 {[%emt 0:00:10]} Rh8 {[%emt 0:00:25]} 34. Kd3 {[%emt 0:00:03]} Kd5 {[%emt 0:00:01]} 35. Rh5 {[%emt 0:00:11]} Rg8 {[%emt 0:00:25]} 36. g3 {[%emt 0:00:07]} Rg6 {[%emt 0:00:05]} 37. f4 {[%emt 0:00:01]} f6 {[%emt 0:00:31]} 38. f5 {[%emt 0:00:01]} c4+ {[%emt 0:00:11]} 39. Kc3 Rg5 {[%emt 0:00:01]} 40. Rxg5 {[%emt 0:00:04]} hxg5 {[%emt 0:00:41]} 41. h4 gxh4 {[%emt 0:00:05]} 42. gxh4 e4 {[%emt 0:00:01]} 43. h5 {[%emt 0:00:01]} e3 44. h6 {[%emt 0:00:01]} e2 {[%emt 0:00:04]} 45. Kd2 {[%emt 0:00:01]} c3+ 46. Kxe2 {[%emt 0:00:02]} Kc4 47. Kd1 {[%emt 0:00:01]} 1-0

[Event "11th LCC Rapid 2019"]
[Site "London"]
[Date "2019.12.07"]
[Round "4.15"]
[White "Lucchi, Lorenzo"]
[Black "Kerr, Duncan"]
[Result "0-1"]
[WhiteElo "2089"]
[BlackElo "1902"]
[PlyCount "99"]
[EventDate "2019.12.08"]
[EventType "swiss"]
[EventCountry "ENG"]
[TimeControl "15+10"]
[WhiteClock "0:02:48"]
[BlackClock "0:07:26"]

1. e4 {[%emt 0:00:00]} e5 {[%emt 0:00:00]} 2. Nf3 {[%emt 0:00:00]} Nc6 {[%emt 0:00:00]} 3. Bc4 {[%emt 0:00:00]} Nf6 {[%emt 0:00:00]} 4. d3 {[%emt 0:00:00]} h6 {[%emt 0:00:00]} 5. c3 {[%emt 0:00:00]} g6 {[%emt 0:00:00]} 6. d4 {[%emt 0:00:00]} Qe7 {[%emt 0:00:00]} 7. O-O {[%emt 0:00:00]} Bg7 {[%emt 0:00:00]} 8. Qe2 {[%emt 0:00:00]} O-O {[%emt 0:00:00]} 9. dxe5 {[%emt 0:00:00]} Nxe5 {[%emt 0:00:00]} 10. Nxe5 {[%emt 0:00:00]} Qxe5 {[%emt 0:00:00]} 11. f4 {[%emt 0:00:00]} Qxe4 {[%emt 0:00:00]} 12. Qxe4 {[%emt 0:00:00]} Nxe4 {[%emt 0:00:00]} 13. f5 {[%emt 0:00:00]} Nd6 {[%emt 0:00:00]} 14. Bd3 {[%emt 0:00:00]} Nxf5 {[%emt 0:00:00]} 15. Bxf5 {[%emt 0:00:00]} gxf5 {[%emt 0:00:00]} 16. Na3 {[%emt 0:00:00]} c6 {[%emt 0:00:00]} 17. Nc4 {[%emt 0:00:00]} d5 {[%emt 0:00:00]} 18. Nd6 {[%emt 0:00:00]} Rd8 {[%emt 0:00:00]} 19. Bf4 {[%emt 0:00:00]} b6 {[%emt 0:00:00]} 20. Bg3 {[%emt 0:00:00]} c5 {[%emt 0:00:00]} 21. Rae1 {[%emt 0:00:00]} Be6 {[%emt 0:00:00]} 22. Nxf5 {[%emt 0:00:00]} Bxf5 {[%emt 0:00:00]} 23. Rxf5 {[%emt 0:00:00]} Rd7 {[%emt 0:00:00]} 24. Bh4 {[%emt 0:02:05]} Rc8 {[%emt 0:00:00]} 25. Rd1 {[%emt 0:00:00]} d4 {[%emt 0:00:00]} 26. c4 {[%emt 0:00:00]} Rc6 {[%emt 0:00:26]} 27. Rd3 {[%emt 0:00:00]} Re6 {[%emt 0:00:30]} 28. b3 {[%emt 0:00:00]} Re4 {[%emt 0:00:55]} 29. g3 {[%emt 0:00:00]} Re5 {[%emt 0:01:04]} 30. Rf4 {[%emt 0:00:00]} Rd6 {[%emt 0:00:15]} 31. Rdf3 {[%emt 0:00:00]} d3 {[%emt 0:00:26]} 32. Rf1 {[%emt 0:00:00]} d2 {[%emt 0:00:11]} 33. Rd1 {[%emt 0:00:00]} Re1+ {[%emt 0:00:07]} 34. Rf1 {[%emt 0:00:00]} Bc3 {[%emt 0:00:29]} 35. g4 {[%emt 0:00:00]} Rxd1 {[%emt 0:00:12]} 36. Rxd1 {[%emt 0:00:00]} Rg6 {[%emt 0:00:13]} 37. h3 {[%emt 0:00:00]} f5 {[%emt 0:00:05]} 38. Kf2 {[%emt 0:00:00]} fxg4 {[%emt 0:00:06]} 39. hxg4 {[%emt 0:00:00]} Rxg4 {[%emt 0:00:04]} 40. Bg3 {[%emt 0:00:00]} Re4 {[%emt 0:00:03]} 41. Kf1 {[%emt 0:00:00]} Re1+ {[%emt 0:00:07]} 42. Bxe1 {[%emt 0:00:00]} dxe1=Q+ {[%emt 0:00:04]} 43. Rxe1 {[%emt 0:00:00]} Bxe1 {[%emt 0:00:01]} 44. Kxe1 {[%emt 0:00:00]} Kf7 {[%emt 0:00:01]} 45. Kf2 {[%emt 0:00:00]} Ke6 {[%emt 0:00:04]} 46. Kf3 {[%emt 0:00:00]} Ke5 {[%emt 0:00:02]} 47. Ke3 {[%emt 0:00:00]} h5 {[%emt 0:00:04]} 48. a3 {[%emt 0:00:00]} h4 {[%emt 0:00:04]} 49. b4 {[%emt 0:00:00]} h3 {[%emt 0:00:04]} 50. Kf3 {[%emt 0:00:00]} 0-1

[Event "11th LCC Rapid 2019"]
[Site "London"]
[Date "2019.12.07"]
[Round "4.16"]
[White "Marusenko, Petr"]
[Black "Ignatovic, Ernest"]
[Result "1-0"]
[WhiteElo "2085"]
[BlackElo "1703"]
[PlyCount "53"]
[EventDate "2019.12.08"]
[EventType "swiss"]
[EventCountry "ENG"]
[TimeControl "15+10"]
[WhiteClock "0:05:40"]
[BlackClock "0:14:43"]

1. d4 {[%emt 0:00:00]} Nf6 {[%emt 0:00:00]} 2. c4 {[%emt 0:00:00]} d6 {[%emt 0:00:00]} 3. g3 {[%emt 0:00:00]} g6 {[%emt 0:00:00]} 4. Bg2 {[%emt 0:00:00]} Bg7 {[%emt 0:00:00]} 5. Nc3 {[%emt 0:00:00]} O-O {[%emt 0:00:00]} 6. Nf3 {[%emt 0:00:00]} Nbd7 {[%emt 0:00:00]} 7. O-O {[%emt 0:00:00]} e5 {[%emt 0:00:00]} 8. h3 {[%emt 0:00:00]} Rb8 {[%emt 0:00:00]} 9. e4 {[%emt 0:00:00]} b6 {[%emt 0:00:00]} 10. Re1 {[%emt 0:00:00]} exd4 {[%emt 0:00:00]} 11. Nxd4 {[%emt 0:00:00]} Bb7 {[%emt 0:00:00]} 12. Be3 {[%emt 0:00:00]} Re8 {[%emt 0:00:00]} 13. Qc2 {[%emt 0:00:00]} Nc5 {[%emt 0:00:00]} 14. f3 {[%emt 0:00:00]} Nh5 {[%emt 0:00:00]} 15. Kh2 {[%emt 0:00:50]} a5 {[%emt 0:00:00]} 16. Bf2 {[%emt 0:00:00]} Qg5 {[%emt 0:00:00]} 17. f4 {[%emt 0:00:00]} Qh6 {[%emt 0:00:00]} 18. Ndb5 {[%emt 0:00:00]} Re7 {[%emt 0:00:00]} 19. Nd5 {[%emt 0:00:00]} Bxd5 {[%emt 0:00:00]} 20. exd5 {[%emt 0:00:00]} Rbe8 {[%emt 0:00:00]} 21. Nxc7 {[%emt 0:00:00]} Rxe1 {[%emt 0:00:00]} 22. Rxe1 {[%emt 0:00:00]} Rxe1 {[%emt 0:00:00]} 23. Bxe1 {[%emt 0:00:00]} Nf6 {[%emt 0:00:00]} 24. Qe2 {[%emt 0:00:00]} Qh5 {[%emt 0:00:00]} 25. g4 {[%emt 0:00:00]} Qh6 {[%emt 0:00:00]} 26. g5 {[%emt 0:00:00]} Qh5 {[%emt 0:00:00]} 27. Bf3 {[%emt 0:00:00]} 1-0